[Event "Titled Tuesday Blitz January 03 Early 2023"]
[White "Sreyas Payyappat"]
[Black "Agasarov, Benik"]
[WhiteFideId "46674969"]
[BlackFideId "13314823"]
[WhiteElo "2076"]
[BlackElo "2235"]
[Result "1/2-1/2"]
[Round "02"]
[TimeControl "180+2"]
[Date "2023.01.03"]
[WhiteClock "0:01:18"]
[BlackClock "0:01:46"]

1. e4 {[%clk 0:03:00]}  e5 {[%clk 0:02:59]} 2. Nf3 {[%clk 0:03:00]}  Nc6 {[%clk 0:02:59]} 3. Bc4 {[%clk 0:02:58]}  Nf6 {[%clk 0:02:59]} 4. d4 {[%clk 0:02:55]}  exd4 {[%clk 0:02:21]} 5. e5 {[%clk 0:02:56]}  d5 {[%clk 0:02:20]} 6. Bb5 {[%clk 0:02:49]}  Ne4 {[%clk 0:02:20]} 7. Nxd4 {[%clk 0:02:48]}  Bc5 {[%clk 0:02:21]} 8. Be3 {[%clk 0:02:47]}  O-O {[%clk 0:02:21]} 9. Nxc6 {[%clk 0:02:43]}  bxc6 {[%clk 0:02:22]} 10. Bxc5 {[%clk 0:02:43]}  Nxc5 {[%clk 0:02:17]} 11. Bxc6 {[%clk 0:02:43]}  Rb8 {[%clk 0:02:17]} 12. Qxd5 {[%clk 0:02:42]}  Qxd5 {[%clk 0:02:15]} 13. Bxd5 {[%clk 0:02:43]}  Rxb2 {[%clk 0:02:16]} 14. Na3 {[%clk 0:02:38]}  Rd8 {[%clk 0:02:13]} 15. Bb3 {[%clk 0:02:24]}  Nxb3 {[%clk 0:02:13]} 16. cxb3 {[%clk 0:02:17]}  Ba6 {[%clk 0:02:13]} 17. Nc4 {[%clk 0:02:07]}  Bxc4 {[%clk 0:02:10]} 18. bxc4 {[%clk 0:02:08]}  Rdd2 {[%clk 0:02:11]} 19. O-O {[%clk 0:02:06]}  Rxa2 {[%clk 0:02:11]} 20. Rxa2 {[%clk 0:02:06]}  Rxa2 {[%clk 0:02:12]} 21. Rb1 {[%clk 0:02:05]}  g6 {[%clk 0:02:12]} 22. f4 {[%clk 0:02:04]}  Rc2 {[%clk 0:02:12]} 23. Rb4 {[%clk 0:02:03]}  c5 {[%clk 0:02:09]} 24. Ra4 {[%clk 0:02:02]}  h5 {[%clk 0:02:09]} 25. h3 {[%clk 0:02:01]}  h4 {[%clk 0:02:09]} 26. Kh2 {[%clk 0:01:59]}  Rf2 {[%clk 0:02:07]} 27. Ra5 {[%clk 0:01:56]}  Rxf4 {[%clk 0:02:07]} 28. Rxc5 {[%clk 0:01:56]}  Re4 {[%clk 0:02:08]} 29. Kg1 {[%clk 0:01:54]}  Kf8 {[%clk 0:02:02]} 30. Kf2 {[%clk 0:01:52]}  Ke7 {[%clk 0:02:02]} 31. Kf3 {[%clk 0:01:50]}  Re1 {[%clk 0:02:02]} 32. Kf4 {[%clk 0:01:46]}  Rg1 {[%clk 0:01:58]} 33. Rc7+ {[%clk 0:01:44]}  Ke6 {[%clk 0:01:58]} 34. Rc6+ {[%clk 0:01:41]}  Kd7 {[%clk 0:01:59]} 35. Rf6 {[%clk 0:01:39]}  Ke7 {[%clk 0:01:59]} 36. Ra6 {[%clk 0:01:35]}  Rxg2 {[%clk 0:01:55]} 37. Rxa7+ {[%clk 0:01:35]}  Ke6 {[%clk 0:01:54]} 38. c5 {[%clk 0:01:34]}  Rf2+ {[%clk 0:01:51]} 39. Ke3 {[%clk 0:01:34]}  Rc2 {[%clk 0:01:50]} 40. Kd4 {[%clk 0:01:34]}  Rd2+ {[%clk 0:01:50]} 41. Kc3 {[%clk 0:01:33]}  Rd5 {[%clk 0:01:50]} 42. Kc4 {[%clk 0:01:34]}  Rxe5 {[%clk 0:01:47]} 43. c6 {[%clk 0:01:32]}  Kd6 {[%clk 0:01:48]} 44. Rxf7 {[%clk 0:01:25]}  Rc5+ {[%clk 0:01:42]} 45. Kd4 {[%clk 0:01:25]}  Rxc6 {[%clk 0:01:40]} 46. Rf6+ {[%clk 0:01:17]}  Kd7 {[%clk 0:01:40]} 47. Rxc6 {[%clk 0:01:18]}  Kxc6 {[%clk 0:01:40]} 48. Ke5 {[%clk 0:01:17]}  Kc5 {[%clk 0:01:41]} 49. Kf6 {[%clk 0:01:17]}  g5 {[%clk 0:01:39]} 50. Kxg5 {[%clk 0:01:16]}  Kd6 {[%clk 0:01:40]} 51. Kxh4 {[%clk 0:01:16]}  Ke7 {[%clk 0:01:41]} 52. Kh5 {[%clk 0:01:16]}  Kf8 {[%clk 0:01:42]} 53. Kg6 {[%clk 0:01:16]}  Kg8 {[%clk 0:01:43]} 54. h4 {[%clk 0:01:16]}  Kh8 {[%clk 0:01:44]} 55. h5 {[%clk 0:01:16]}  Kg8 {[%clk 0:01:45]} 56. h6 {[%clk 0:01:17]}  Kh8 {[%clk 0:01:46]} 57. h7 {[%clk 0:01:18]} 1/2-1/2


[Site "https://www.chess.com"]

[Event "Titled Tuesday Blitz January 03 Early 2023"]
[White "Csonka, Balazs"]
[Black "Miszler, Levente"]
[WhiteFideId "742910"]
[BlackFideId "763276"]
[WhiteElo "2496"]
[BlackElo "2271"]
[Result "1-0"]
[Round "02"]
[TimeControl "180+2"]
[Date "2023.01.03"]
[WhiteClock "0:00:43"]
[BlackClock "0:00:10"]

1. e4 {[%clk 0:02:59]}  c5 {[%clk 0:02:54]} 2. Nf3 {[%clk 0:02:58]}  Nc6 {[%clk 0:02:45]} 3. d4 {[%clk 0:02:55]}  cxd4 {[%clk 0:02:43]} 4. Nxd4 {[%clk 0:02:56]}  Qa5+ {[%clk 0:02:36]} 5. Nc3 {[%clk 0:02:52]}  g6 {[%clk 0:02:30]} 6. Nb3 {[%clk 0:02:12]}  Qc7 {[%clk 0:02:28]} 7. Nd5 {[%clk 0:01:57]}  Qb8 {[%clk 0:02:11]} 8. Bf4 {[%clk 0:01:58]}  d6 {[%clk 0:02:10]} 9. Qd3 {[%clk 0:01:32]}  Bg7 {[%clk 0:02:05]} 10. O-O-O {[%clk 0:01:32]}  Nf6 {[%clk 0:01:59]} 11. Nxe7 {[%clk 0:01:31]}  Bg4 {[%clk 0:01:08]} 12. Bxd6 {[%clk 0:01:20]}  Qd8 {[%clk 0:00:43]} 13. Nxc6 {[%clk 0:01:16]}  bxc6 {[%clk 0:00:35]} 14. f3 {[%clk 0:01:14]}  Be6 {[%clk 0:00:33]} 15. Qc3 {[%clk 0:01:11]}  Qb6 {[%clk 0:00:19]} 16. Be5 {[%clk 0:01:02]}  Bxb3 {[%clk 0:00:16]} 17. axb3 {[%clk 0:00:54]}  c5 {[%clk 0:00:16]} 18. Rd6 {[%clk 0:00:52]}  Nxe4 {[%clk 0:00:21]} 19. fxe4 {[%clk 0:00:50]}  Qxd6 {[%clk 0:00:19]} 20. Bb5+ {[%clk 0:00:49]}  Kd8 {[%clk 0:00:14]} 21. Bxg7 {[%clk 0:00:49]}  Qf4+ {[%clk 0:00:13]} 22. Kb1 {[%clk 0:00:49]}  Rb8 {[%clk 0:00:11]} 23. Rd1+ {[%clk 0:00:45]}  Kc8 {[%clk 0:00:10]} 24. Qxc5+ {[%clk 0:00:43]} 1-0


[Site "https://www.chess.com"]

[Event "Titled Tuesday Blitz January 03 Early 2023"]
[White "Martynov, Pavel"]
[Black "Zilleruelo Irizarry, Diego"]
[WhiteFideId "4101260"]
[BlackFideId "3101460"]
[WhiteElo "2414"]
[BlackElo "2135"]
[Result "1-0"]
[Round "02"]
[TimeControl "180+2"]
[Date "2023.01.03"]
[WhiteClock "0:01:32"]
[BlackClock "0:01:28"]

1. e4 {[%clk 0:03:00]}  c6 {[%clk 0:02:59]} 2. d4 {[%clk 0:03:00]}  d5 {[%clk 0:03:00]} 3. exd5 {[%clk 0:03:00]}  cxd5 {[%clk 0:03:01]} 4. c4 {[%clk 0:03:01]}  Nf6 {[%clk 0:03:01]} 5. Nc3 {[%clk 0:03:01]}  g6 {[%clk 0:03:02]} 6. cxd5 {[%clk 0:02:59]}  Bg7 {[%clk 0:03:02]} 7. Bc4 {[%clk 0:02:59]}  O-O {[%clk 0:03:03]} 8. Nf3 {[%clk 0:03:00]}  Nbd7 {[%clk 0:03:03]} 9. d6 {[%clk 0:03:01]}  Nb6 {[%clk 0:03:04]} 10. dxe7 {[%clk 0:03:01]}  Qxe7+ {[%clk 0:03:05]} 11. Be2 {[%clk 0:03:01]}  Bg4 {[%clk 0:03:04]} 12. O-O {[%clk 0:03:02]}  Rad8 {[%clk 0:03:02]} 13. h3 {[%clk 0:03:02]}  Bxf3 {[%clk 0:03:02]} 14. Bxf3 {[%clk 0:03:03]}  Qd7 {[%clk 0:02:57]} 15. Be3 {[%clk 0:03:00]}  Nc4 {[%clk 0:02:57]} 16. Qb3 {[%clk 0:02:57]}  Nxe3 {[%clk 0:02:55]} 17. fxe3 {[%clk 0:02:57]}  b6 {[%clk 0:02:56]} 18. Rad1 {[%clk 0:02:48]}  Rfe8 {[%clk 0:02:55]} 19. e4 {[%clk 0:02:47]}  h5 {[%clk 0:02:36]} 20. e5 {[%clk 0:02:40]}  Nh7 {[%clk 0:02:33]} 21. Bd5 {[%clk 0:02:35]}  Re7 {[%clk 0:02:33]} 22. Qc2 {[%clk 0:02:26]}  Kh8 {[%clk 0:02:17]} 23. Rxf7 {[%clk 0:01:42]}  Rxf7 {[%clk 0:02:17]} 24. e6 {[%clk 0:01:43]}  Qe7 {[%clk 0:02:02]} 25. exf7 {[%clk 0:01:41]}  Qe3+ {[%clk 0:01:53]} 26. Kh1 {[%clk 0:01:38]}  Bxd4 {[%clk 0:01:53]} 27. Qxg6 {[%clk 0:01:34]}  h4 {[%clk 0:01:28]} 28. Qg8+ {[%clk 0:01:32]} 1-0


[Site "https://www.chess.com"]

[Event "Titled Tuesday Blitz January 03 Early 2023"]
[White "Sjoberg, Isak"]
[Black "Goroshkov, Maksym"]
[WhiteFideId "1521640"]
[BlackFideId "14142716"]
[WhiteElo "2308"]
[BlackElo "2287"]
[Result "0-1"]
[Round "02"]
[TimeControl "180+2"]
[Date "2023.01.03"]
[WhiteClock "0:00:27"]
[BlackClock "0:01:03"]

1. e4 {[%clk 0:03:00]}  e5 {[%clk 0:03:00]} 2. Nf3 {[%clk 0:03:01]}  d6 {[%clk 0:03:01]} 3. d4 {[%clk 0:03:01]}  Bg4 {[%clk 0:03:01]} 4. Bc4 {[%clk 0:02:52]}  exd4 {[%clk 0:02:56]} 5. Qxd4 {[%clk 0:02:49]}  Nc6 {[%clk 0:02:55]} 6. Qe3 {[%clk 0:02:36]}  Nf6 {[%clk 0:02:55]} 7. b3 {[%clk 0:02:35]}  Be7 {[%clk 0:02:51]} 8. Bb2 {[%clk 0:02:35]}  O-O {[%clk 0:02:51]} 9. Nbd2 {[%clk 0:02:36]}  d5 {[%clk 0:02:50]} 10. Bd3 {[%clk 0:02:19]}  Bxf3 {[%clk 0:02:42]} 11. gxf3 {[%clk 0:02:17]}  d4 {[%clk 0:02:41]} 12. Qf4 {[%clk 0:02:15]}  Bd6 {[%clk 0:02:40]} 13. Qh4 {[%clk 0:02:15]}  Ne5 {[%clk 0:02:36]} 14. O-O-O {[%clk 0:02:11]}  Bb4 {[%clk 0:02:33]} 15. Qg3 {[%clk 0:02:00]}  Qd6 {[%clk 0:02:16]} 16. f4 {[%clk 0:01:57]}  Nxd3+ {[%clk 0:02:15]} 17. Qxd3 {[%clk 0:01:57]}  Qxf4 {[%clk 0:02:14]} 18. Qxd4 {[%clk 0:01:48]}  Bxd2+ {[%clk 0:02:09]} 19. Qxd2 {[%clk 0:01:42]}  Qxd2+ {[%clk 0:02:06]} 20. Rxd2 {[%clk 0:01:42]}  Nxe4 {[%clk 0:02:06]} 21. Rg1 {[%clk 0:01:39]}  f6 {[%clk 0:01:59]} 22. Re2 {[%clk 0:01:31]}  Rae8 {[%clk 0:01:57]} 23. Rge1 {[%clk 0:01:29]}  Nd6 {[%clk 0:01:55]} 24. Bd4 {[%clk 0:01:19]}  Rxe2 {[%clk 0:01:54]} 25. Rxe2 {[%clk 0:01:19]}  Re8 {[%clk 0:01:54]} 26. Rxe8+ {[%clk 0:01:18]}  Nxe8 {[%clk 0:01:55]} 27. Bxa7 {[%clk 0:01:18]}  b6 {[%clk 0:01:55]} 28. a4 {[%clk 0:01:15]}  Kf7 {[%clk 0:01:55]} 29. b4 {[%clk 0:01:15]}  Ke6 {[%clk 0:01:50]} 30. a5 {[%clk 0:01:15]}  bxa5 {[%clk 0:01:49]} 31. bxa5 {[%clk 0:01:15]}  Kd7 {[%clk 0:01:49]} 32. Bc5 {[%clk 0:01:12]}  Kc6 {[%clk 0:01:43]} 33. a6 {[%clk 0:01:12]}  Nd6 {[%clk 0:01:41]} 34. a7 {[%clk 0:00:55]}  Kb7 {[%clk 0:01:40]} 35. Kd1 {[%clk 0:00:50]}  Nb5 {[%clk 0:01:39]} 36. c4 {[%clk 0:00:42]}  Nxa7 {[%clk 0:01:38]} 37. Kd2 {[%clk 0:00:43]}  Nc6 {[%clk 0:01:36]} 38. Ke3 {[%clk 0:00:43]}  Ne5 {[%clk 0:01:36]} 39. Kd4 {[%clk 0:00:42]}  Kc6 {[%clk 0:01:35]} 40. Bf8 {[%clk 0:00:42]}  g6 {[%clk 0:01:35]} 41. Bg7 {[%clk 0:00:42]}  Nf3+ {[%clk 0:01:31]} 42. Ke4 {[%clk 0:00:39]}  Ng5+ {[%clk 0:01:28]} 43. Ke3 {[%clk 0:00:36]}  f5 {[%clk 0:01:27]} 44. h4 {[%clk 0:00:35]}  Ne6 {[%clk 0:01:27]} 45. Be5 {[%clk 0:00:36]}  Kc5 {[%clk 0:01:26]} 46. Kd3 {[%clk 0:00:36]}  c6 {[%clk 0:01:26]} 47. f4 {[%clk 0:00:36]}  Kb4 {[%clk 0:01:10]} 48. Bc3+ {[%clk 0:00:31]}  Kb3 {[%clk 0:01:10]} 49. Be5 {[%clk 0:00:31]}  c5 {[%clk 0:01:08]} 50. Bd6 {[%clk 0:00:29]}  Kb4 {[%clk 0:01:06]} 51. Be5 {[%clk 0:00:29]}  Nd8 {[%clk 0:01:05]} 52. Bc3+ {[%clk 0:00:28]}  Kb3 {[%clk 0:01:05]} 53. Ba5 {[%clk 0:00:27]}  Nc6 {[%clk 0:01:04]} 54. Bb6 {[%clk 0:00:27]}  Nb4+ {[%clk 0:01:03]} 0-1


[Site "https://www.chess.com"]

[Event "Titled Tuesday Blitz January 03 Early 2023"]
[White "Carnicelli, Valerio"]
[Black "Topalov, Aleksandar"]
[WhiteFideId "856185"]
[BlackFideId "925659"]
[WhiteElo "2370"]
[BlackElo "2233"]
[Result "1-0"]
[Round "02"]
[TimeControl "180+2"]
[Date "2023.01.03"]
[WhiteClock "0:01:53"]
[BlackClock "0:00:09"]

1. b3 {[%clk 0:03:00]}  Nf6 {[%clk 0:02:36]} 2. Bb2 {[%clk 0:03:00]}  g6 {[%clk 0:02:35]} 3. c4 {[%clk 0:03:00]}  Bg7 {[%clk 0:02:31]} 4. e3 {[%clk 0:03:01]}  O-O {[%clk 0:02:30]} 5. Be2 {[%clk 0:03:01]}  d6 {[%clk 0:02:30]} 6. h4 {[%clk 0:03:00]}  h5 {[%clk 0:02:21]} 7. Nf3 {[%clk 0:02:58]}  a5 {[%clk 0:02:19]} 8. Ng5 {[%clk 0:02:56]}  a4 {[%clk 0:02:16]} 9. d3 {[%clk 0:02:44]}  c6 {[%clk 0:02:08]} 10. Nd2 {[%clk 0:02:43]}  a3 {[%clk 0:02:03]} 11. Bc3 {[%clk 0:02:42]}  b5 {[%clk 0:02:01]} 12. cxb5 {[%clk 0:02:39]}  cxb5 {[%clk 0:02:00]} 13. Bf3 {[%clk 0:02:39]}  Ra7 {[%clk 0:01:54]} 14. Bd4 {[%clk 0:02:33]}  Ra6 {[%clk 0:01:48]} 15. Rc1 {[%clk 0:02:33]}  Ng4 {[%clk 0:01:29]} 16. Bxg7 {[%clk 0:02:32]}  Kxg7 {[%clk 0:01:29]} 17. Nde4 {[%clk 0:02:24]}  f6 {[%clk 0:01:09]} 18. Nh3 {[%clk 0:02:19]}  e5 {[%clk 0:01:07]} 19. d4 {[%clk 0:02:09]}  Be6 {[%clk 0:00:51]} 20. O-O {[%clk 0:02:04]}  Nd7 {[%clk 0:00:44]} 21. Qd2 {[%clk 0:02:03]}  Qb8 {[%clk 0:00:22]} 22. d5 {[%clk 0:02:01]}  Bf7 {[%clk 0:00:19]} 23. Rc6 {[%clk 0:02:01]}  Rb6 {[%clk 0:00:14]} 24. Rfc1 {[%clk 0:02:00]}  f5 {[%clk 0:00:11]} 25. Nxd6 {[%clk 0:01:58]}  e4 {[%clk 0:00:09]} 26. Qd4+ {[%clk 0:01:55]}  Kg8 {[%clk 0:00:09]} 27. Bxg4 {[%clk 0:01:53]} 1-0


[Site "https://www.chess.com"]

[Event "Titled Tuesday Blitz January 03 Early 2023"]
[White "Atanasov, Anthony"]
[Black "Batsiashvili, Nino"]
[WhiteFideId "2623897"]
[BlackFideId "13602993"]
[WhiteElo "2368"]
[BlackElo "2467"]
[Result "1-0"]
[Round "02"]
[TimeControl "180+2"]
[Date "2023.01.03"]
[WhiteClock "0:00:43"]
[BlackClock "0:00:31"]

1. d4 {[%clk 0:03:00]}  Nf6 {[%clk 0:02:51]} 2. Nf3 {[%clk 0:03:00]}  c5 {[%clk 0:02:50]} 3. d5 {[%clk 0:03:01]}  b5 {[%clk 0:02:50]} 4. c4 {[%clk 0:02:57]}  b4 {[%clk 0:02:49]} 5. Bf4 {[%clk 0:02:53]}  d6 {[%clk 0:02:49]} 6. Nbd2 {[%clk 0:02:52]}  g6 {[%clk 0:02:49]} 7. e4 {[%clk 0:02:52]}  Bg7 {[%clk 0:02:49]} 8. h3 {[%clk 0:02:53]}  O-O {[%clk 0:02:49]} 9. Qc2 {[%clk 0:02:52]}  a5 {[%clk 0:02:48]} 10. a4 {[%clk 0:02:51]}  bxa3 {[%clk 0:02:35]} 11. Rxa3 {[%clk 0:02:51]}  Na6 {[%clk 0:02:35]} 12. Be2 {[%clk 0:02:50]}  Nb4 {[%clk 0:02:36]} 13. Qb1 {[%clk 0:02:51]}  a4 {[%clk 0:02:32]} 14. O-O {[%clk 0:02:50]}  Nd7 {[%clk 0:02:32]} 15. Bd1 {[%clk 0:02:40]}  Nb6 {[%clk 0:02:29]} 16. Re1 {[%clk 0:02:36]}  Ba6 {[%clk 0:02:29]} 17. Qc1 {[%clk 0:02:29]}  e6 {[%clk 0:02:25]} 18. Bg5 {[%clk 0:02:07]}  Qd7 {[%clk 0:02:20]} 19. Be2 {[%clk 0:02:00]}  exd5 {[%clk 0:02:20]} 20. cxd5 {[%clk 0:02:00]}  Rfe8 {[%clk 0:02:13]} 21. Bxa6 {[%clk 0:01:57]}  Rxa6 {[%clk 0:02:14]} 22. Nb1 {[%clk 0:01:49]}  h6 {[%clk 0:02:12]} 23. Bxh6 {[%clk 0:01:48]}  Bxh6 {[%clk 0:02:10]} 24. Qxh6 {[%clk 0:01:48]}  Nc2 {[%clk 0:01:47]} 25. Ng5 {[%clk 0:01:48]}  Nxa3 {[%clk 0:01:45]} 26. Nxa3 {[%clk 0:01:17]}  Re5 {[%clk 0:01:44]} 27. f4 {[%clk 0:01:13]}  Rxg5 {[%clk 0:01:42]} 28. Qxg5 {[%clk 0:01:11]}  Ra8 {[%clk 0:01:40]} 29. f5 {[%clk 0:01:10]}  Qd8 {[%clk 0:01:37]} 30. f6 {[%clk 0:01:08]}  Nd7 {[%clk 0:01:30]} 31. Rf1 {[%clk 0:01:04]}  Rb8 {[%clk 0:01:29]} 32. Nc4 {[%clk 0:01:02]}  Nb6 {[%clk 0:01:22]} 33. Ne3 {[%clk 0:00:53]}  Qf8 {[%clk 0:01:10]} 34. Nf5 {[%clk 0:00:51]}  Nc8 {[%clk 0:00:43]} 35. Rf4 {[%clk 0:00:44]}  Rxb2 {[%clk 0:00:41]} 36. Nh6+ {[%clk 0:00:40]}  Kh7 {[%clk 0:00:36]} 37. Rh4 {[%clk 0:00:40]}  Rb1+ {[%clk 0:00:35]} 38. Kh2 {[%clk 0:00:41]}  Qe8 {[%clk 0:00:34]} 39. Nf5+ {[%clk 0:00:39]}  Kg8 {[%clk 0:00:31]} 40. Rh8+ {[%clk 0:00:40]}  Kxh8 {[%clk 0:00:31]} 41. Qh6+ {[%clk 0:00:41]}  Kg8 {[%clk 0:00:32]} 42. Ne7+ {[%clk 0:00:42]}  Nxe7 {[%clk 0:00:31]} 43. Qg7# {[%clk 0:00:43]} 1-0


[Site "https://www.chess.com"]

[Event "Titled Tuesday Blitz January 03 Early 2023"]
[White "Buscar, Michael"]
[Black "Martinez Ramirez, Lennis"]
[WhiteFideId "2603616"]
[BlackFideId "3509079"]
[WhiteElo "2041"]
[BlackElo "2426"]
[Result "1-0"]
[Round "02"]
[TimeControl "180+2"]
[Date "2023.01.03"]
[WhiteClock "0:00:09"]
[BlackClock "0:00:20"]

1. d4 {[%clk 0:03:00]}  d5 {[%clk 0:02:59]} 2. c4 {[%clk 0:02:59]}  e6 {[%clk 0:02:59]} 3. Nc3 {[%clk 0:02:58]}  Nf6 {[%clk 0:02:59]} 4. Bg5 {[%clk 0:02:52]}  Bb4 {[%clk 0:02:52]} 5. e3 {[%clk 0:02:48]}  h6 {[%clk 0:02:51]} 6. Bxf6 {[%clk 0:02:48]}  Qxf6 {[%clk 0:02:50]} 7. Bd3 {[%clk 0:02:47]}  dxc4 {[%clk 0:02:48]} 8. Bxc4 {[%clk 0:02:47]}  O-O {[%clk 0:02:48]} 9. Ne2 {[%clk 0:02:45]}  b6 {[%clk 0:02:48]} 10. O-O {[%clk 0:02:45]}  Bb7 {[%clk 0:02:47]} 11. a3 {[%clk 0:02:45]}  Bd6 {[%clk 0:02:44]} 12. e4 {[%clk 0:02:41]}  e5 {[%clk 0:02:42]} 13. f4 {[%clk 0:02:25]}  exd4 {[%clk 0:02:34]} 14. e5 {[%clk 0:02:06]}  Qd8 {[%clk 0:01:57]} 15. Nb5 {[%clk 0:01:46]}  Be7 {[%clk 0:01:55]} 16. Nbxd4 {[%clk 0:01:41]}  Nc6 {[%clk 0:01:48]} 17. Nxc6 {[%clk 0:01:18]}  Bxc6 {[%clk 0:01:46]} 18. Qxd8 {[%clk 0:01:10]}  Raxd8 {[%clk 0:01:43]} 19. Rfd1 {[%clk 0:01:11]}  Bc5+ {[%clk 0:01:38]} 20. Kf1 {[%clk 0:01:09]}  a5 {[%clk 0:01:37]} 21. Nc3 {[%clk 0:00:59]}  Be3 {[%clk 0:01:36]} 22. g3 {[%clk 0:00:56]}  Bf3 {[%clk 0:01:35]} 23. Be2 {[%clk 0:00:54]}  Bh1 {[%clk 0:01:29]} 24. Rxd8 {[%clk 0:00:49]}  Rxd8 {[%clk 0:01:29]} 25. Rd1 {[%clk 0:00:50]}  Rxd1+ {[%clk 0:01:29]} 26. Nxd1 {[%clk 0:00:50]}  Bd4 {[%clk 0:01:29]} 27. Bc4 {[%clk 0:00:45]}  g5 {[%clk 0:01:22]} 28. fxg5 {[%clk 0:00:33]}  hxg5 {[%clk 0:01:19]} 29. e6 {[%clk 0:00:33]}  fxe6 {[%clk 0:01:20]} 30. Bxe6+ {[%clk 0:00:32]}  Kg7 {[%clk 0:01:20]} 31. Bg4 {[%clk 0:00:32]}  Kf6 {[%clk 0:01:19]} 32. Ke2 {[%clk 0:00:29]}  b5 {[%clk 0:01:10]} 33. h4 {[%clk 0:00:27]}  b4 {[%clk 0:01:08]} 34. axb4 {[%clk 0:00:25]}  axb4 {[%clk 0:01:08]} 35. Kd3 {[%clk 0:00:23]}  c5 {[%clk 0:01:03]} 36. Kc4 {[%clk 0:00:15]}  Bg2 {[%clk 0:00:52]} 37. Be2 {[%clk 0:00:14]}  Ke5 {[%clk 0:00:44]} 38. Kd3 {[%clk 0:00:11]}  Be4+ {[%clk 0:00:44]} 39. Kc4 {[%clk 0:00:11]}  Bd5+ {[%clk 0:00:43]} 40. Kd3 {[%clk 0:00:12]}  c4+ {[%clk 0:00:44]} 41. Kd2 {[%clk 0:00:11]}  Be4 {[%clk 0:00:32]} 42. hxg5 {[%clk 0:00:09]}  Kd5 {[%clk 0:00:29]} 43. Ne3+ {[%clk 0:00:07]}  Bxe3+ {[%clk 0:00:26]} 44. Kxe3 {[%clk 0:00:07]}  c3 {[%clk 0:00:27]} 45. bxc3 {[%clk 0:00:07]}  b3 {[%clk 0:00:28]} 46. Bd3 {[%clk 0:00:06]}  Bg2 {[%clk 0:00:11]} 47. g6 {[%clk 0:00:04]}  Ke6 {[%clk 0:00:11]} 48. Bc4+ {[%clk 0:00:03]}  Kf6 {[%clk 0:00:12]} 49. Bxb3 {[%clk 0:00:04]}  Kxg6 {[%clk 0:00:11]} 50. Bc2+ {[%clk 0:00:02]}  Kg5 {[%clk 0:00:12]} 51. Be4 {[%clk 0:00:03]}  Kg4 {[%clk 0:00:13]} 52. Bxg2 {[%clk 0:00:03]}  Kxg3 {[%clk 0:00:14]} 53. Bd5 {[%clk 0:00:03]}  Kg4 {[%clk 0:00:15]} 54. Kd4 {[%clk 0:00:04]}  Kf5 {[%clk 0:00:15]} 55. Kc5 {[%clk 0:00:04]}  Kf6 {[%clk 0:00:16]} 56. Kd6 {[%clk 0:00:04]}  Kf5 {[%clk 0:00:16]} 57. c4 {[%clk 0:00:05]}  Kf4 {[%clk 0:00:17]} 58. c5 {[%clk 0:00:05]}  Ke3 {[%clk 0:00:18]} 59. c6 {[%clk 0:00:06]}  Kd4 {[%clk 0:00:19]} 60. c7 {[%clk 0:00:07]}  Kd3 {[%clk 0:00:19]} 61. c8=Q {[%clk 0:00:08]}  Ke3 {[%clk 0:00:20]} 62. Qc4 {[%clk 0:00:09]} 1-0


[Site "https://www.chess.com"]

[Event "Titled Tuesday Blitz January 03 Early 2023"]
[White "Tologon tegin, Semetei"]
[Black "Federzoni, Enzo"]
[WhiteFideId "13800574"]
[BlackFideId "2173301"]
[WhiteElo "2372"]
[BlackElo "2133"]
[Result "1-0"]
[Round "02"]
[TimeControl "180+2"]
[Date "2023.01.03"]
[WhiteClock "0:00:08"]
[BlackClock "0:00:12"]

1. e4 {[%clk 0:02:58]}  c5 {[%clk 0:02:59]} 2. Nf3 {[%clk 0:02:57]}  d6 {[%clk 0:03:00]} 3. d4 {[%clk 0:02:57]}  cxd4 {[%clk 0:03:01]} 4. Nxd4 {[%clk 0:02:58]}  Nf6 {[%clk 0:03:01]} 5. Nc3 {[%clk 0:02:57]}  a6 {[%clk 0:03:02]} 6. a3 {[%clk 0:02:58]}  e6 {[%clk 0:03:00]} 7. Be3 {[%clk 0:02:57]}  b5 {[%clk 0:02:51]} 8. Bd3 {[%clk 0:02:52]}  Bb7 {[%clk 0:02:51]} 9. O-O {[%clk 0:02:52]}  Nbd7 {[%clk 0:02:51]} 10. f4 {[%clk 0:02:52]}  Be7 {[%clk 0:02:47]} 11. Qf3 {[%clk 0:02:29]}  O-O {[%clk 0:02:43]} 12. Rae1 {[%clk 0:02:25]}  Rc8 {[%clk 0:02:41]} 13. g4 {[%clk 0:02:02]}  Rxc3 {[%clk 0:02:38]} 14. bxc3 {[%clk 0:02:01]}  Nc5 {[%clk 0:02:34]} 15. Bd2 {[%clk 0:01:55]}  Nfd7 {[%clk 0:02:30]} 16. Qh3 {[%clk 0:01:52]}  Re8 {[%clk 0:02:25]} 17. g5 {[%clk 0:01:20]}  Qa5 {[%clk 0:02:13]} 18. Qg3 {[%clk 0:01:07]}  Bf8 {[%clk 0:01:57]} 19. f5 {[%clk 0:01:05]}  e5 {[%clk 0:01:56]} 20. Ne6 {[%clk 0:00:49]}  fxe6 {[%clk 0:01:21]} 21. f6 {[%clk 0:00:48]}  Rc8 {[%clk 0:01:10]} 22. Re3 {[%clk 0:00:20]}  Qd8 {[%clk 0:00:54]} 23. f7+ {[%clk 0:00:13]}  Kh8 {[%clk 0:00:54]} 24. g6 {[%clk 0:00:12]}  h6 {[%clk 0:00:50]} 25. Qh3 {[%clk 0:00:12]}  d5 {[%clk 0:00:40]} 26. exd5 {[%clk 0:00:10]}  Bxd5 {[%clk 0:00:37]} 27. Rg3 {[%clk 0:00:10]}  Nxd3 {[%clk 0:00:33]} 28. cxd3 {[%clk 0:00:11]}  Nf6 {[%clk 0:00:24]} 29. Qh4 {[%clk 0:00:08]}  e4 {[%clk 0:00:21]} 30. Bxh6 {[%clk 0:00:07]}  gxh6 {[%clk 0:00:20]} 31. Rxf6 {[%clk 0:00:06]}  Bg7 {[%clk 0:00:17]} 32. f8=Q+ {[%clk 0:00:06]}  Bxf8 {[%clk 0:00:15]} 33. g7+ {[%clk 0:00:07]}  Bxg7 {[%clk 0:00:15]} 34. Rxh6+ {[%clk 0:00:07]}  Kg8 {[%clk 0:00:13]} 35. Rxg7+ {[%clk 0:00:07]}  Kxg7 {[%clk 0:00:13]} 36. Rh7+ {[%clk 0:00:07]}  Kf8 {[%clk 0:00:12]} 37. Qh6+ {[%clk 0:00:07]}  Ke8 {[%clk 0:00:12]} 38. Qg6+ {[%clk 0:00:07]}  Kf8 {[%clk 0:00:12]} 39. Qf7# {[%clk 0:00:08]} 1-0


[Site "https://www.chess.com"]